fUSD/lending_fUSD_20250507
["ID","MTS","AMOUNT","RATE_DAILY","PERIOD"]
[360190444,1746613833887,-500.0,0.00019516,2]
[360190445,1746613833896,-500.0,0.00019516,2]
[360190446,1746613833905,-450.0,0.00019516,2]
[360190447,1746613833915,-450.0,0.00019516,2]
[360190448,1746613833924,-810.25,0.00019516,2]
[360190449,1746613833934,-450.0,0.00019516,2]
[360190450,1746613833943,-1516.65,0.00019516,2]
[360190451,1746613833953,-909.16,0.00019516,2]
[360190452,1746613833962,-450.0,0.00019516,2]
[360190453,1746613833972,-500.0,0.00019516,2]
[360190454,1746613833981,-250.0,0.00019516,2]
[360190455,1746613833991,-450.0,0.00019516,2]
[360190456,1746613834000,-450.0,0.00019516,2]
[360190457,1746613834011,-753.89,0.00019516,2]
[360190458,1746613834021,-450.0,0.00019516,2]
[360190459,1746613834031,-450.0,0.00019516,2]
[360190460,1746613834041,-450.0,0.00019516,2]
[360190461,1746613834050,-450.0,0.00019516,2]
[360190462,1746613834060,-597.32,0.00019516,2]
[360190463,1746613834070,-450.0,0.00019516,2]
[360190464,1746613834079,-450.0,0.00019516,2]
[360190465,1746613834089,-450.0,0.00019516,2]
[360190466,1746613834098,-450.0,0.00019516,2]
[360190467,1746613834107,-450.0,0.00019516,2]
[360190468,1746613834117,-1968.86,0.00019516,2]
[360190469,1746613834127,-450.0,0.00019516,2]
[360190470,1746613834137,-450.0,0.00019516,2]
[360190471,1746613834146,-2037.95,0.00019516,2]
[360190472,1746613834156,-1828.96,0.00019516,2]
[360190473,1746613834165,-696.03,0.00019516,2]
[360190474,1746613834175,-474.52076628,0.00019516,2]
[360190475,1746613834184,-450.0,0.00019516,2]
[360190476,1746613834194,-692.97,0.00019516,2]
[360190477,1746613834204,-450.0,0.00019516,2]
[360190478,1746613834214,-450.0,0.00019516,2]
[360190479,1746613834224,-512.64,0.00019516,2]
[360190480,1746613834234,-450.0,0.00019516,2]
[360190481,1746613834244,-450.0,0.00019516,2]
[360190482,1746613834253,-450.0,0.00019516,2]
[360190483,1746613834264,-450.0,0.00019516,2]
[360190484,1746613834273,-470.0,0.00019516,2]
[360190485,1746613834282,-468.25007224,0.00019516,2]
[360190486,1746613834292,-1317.15,0.00019516,2]
[360190487,1746613834301,-515.92,0.00019516,2]
[360190488,1746613834320,-55125.51769751,0.00019516,2]
[360190491,1746613837993,-500.0,0.00019514,2]
[360190492,1746613838003,-500.0,0.00019514,2]
[360190493,1746613838012,-500.0,0.00019514,2]
[360190494,1746613838022,-500.0,0.00019514,2]
[360190495,1746613838031,-500.0,0.00019514,2]
[360190496,1746613838040,-204.56,0.00019514,2]
[360190497,1746613838099,-295.44,0.00019514,2]
[360190498,1746613838110,-500.0,0.00019514,2]
[360190499,1746613838121,-233.78745879,0.00019514,2]
[360190500,1746613838133,-266.21254121,0.00019514,2]
[360190501,1746613838142,-500.0,0.00019514,2]
[360190502,1746613838151,-190.27592385,0.00019514,2]
[360190503,1746613838259,-309.72407615,0.00019514,2]
[360190504,1746613838269,-500.0,0.00019514,2]
[360190505,1746613838279,-500.0,0.00019514,2]
[360190506,1746613838288,-500.0,0.00019514,2]
[360190507,1746613838297,-65.22443334,0.00019514,2]
[360190508,1746613838308,-447.89134999,0.00019514,2]
[360190515,1746613840252,-76.79702119,0.00019514,2]
[360190516,1746613840262,-500.0,0.00019514,2]
[360190517,1746613840271,-500.0,0.00019514,2]
[360190518,1746613840281,-500.0,0.00019514,2]
[360190519,1746613840291,-115.76209991,0.00019514,2]
[360190520,1746613840303,-384.23790009,0.00019514,2]
[360190521,1746613840312,-251.80461131,0.00019514,2]
[360190522,1746613840324,-248.19538869,0.00019514,2]
[360190523,1746613840333,-215.83857131,0.00019514,2]
[360190524,1746613840357,-284.16142869,0.00019514,2]
[360190525,1746613840592,-500.0,0.00019514,2]
[360190526,1746613840603,-4.56274771,0.00019514,2]
[360190527,1746613840615,-400.99417231,0.00019514,2]
[360190528,1746613840639,-94.44307998,0.00019514,2]
[360190529,1746613840648,-500.0,0.00019514,2]
[360190530,1746613840658,-500.0,0.00019514,2]
[360190531,1746613840667,-500.0,0.00019514,2]
[360190532,1746613840676,-500.0,0.00019514,2]
[360190533,1746613840685,-500.0,0.00019514,2]
[360190534,1746613840695,-500.0,0.00019514,2]
[360190535,1746613840704,-387.28959112,0.00019514,2]
[360190536,1746613840740,-112.71040888,0.00019514,2]
[360190537,1746613840750,-500.0,0.00019514,2]
[360190538,1746613840759,-500.0,0.00019514,2]
[360190539,1746613840768,-500.0,0.00019514,2]
[360190540,1746613840778,-500.0,0.00019514,2]
[360190542,1746613840788,-500.0,0.00019514,2]
[360190544,1746613840798,-238.07431182,0.00019514,2]
[360190545,1746613840807,-500.0,0.00019514,2]
[360190547,1746613840817,-500.0,0.00019514,2]
[360190549,1746613840826,-500.0,0.00019514,2]
[360190551,1746613840836,-500.0,0.00019514,2]
[360190553,1746613840846,-500.0,0.00019514,2]
[360190556,1746613840856,-500.0,0.00019514,2]
[360190558,1746613840866,-500.0,0.00019514,2]
[360190560,1746613840876,-500.0,0.00019514,2]
[360190562,1746613840886,-500.0,0.00019514,2]
[360190564,1746613840896,-500.0,0.00019514,2]
[360190566,1746613840905,-500.0,0.00019514,2]
[360190568,1746613840915,-500.0,0.00019514,2]
[360190570,1746613840924,-500.0,0.00019514,2]
[360190572,1746613840934,-500.0,0.00019514,2]
[360190574,1746613840943,-450.0,0.00019515,2]
[360190576,1746613840952,-450.0,0.00019515,2]
[360190578,1746613840962,-450.0,0.00019515,2]
[360190579,1746613840971,-450.0,0.00019515,2]
[360190581,1746613840980,-450.0,0.00019515,2]
[360190583,1746613840990,-9633.23230249,0.00019516,2]
[360190585,1746613840999,-3129.34,0.00019516,2]
[360190588,1746613841008,-450.0,0.00019516,2]
[360190590,1746613841017,-1087.71,0.00019516,2]
[360190591,1746613841027,-450.0,0.00019516,2]
[360190592,1746613841036,-34908.72,0.00019516,2]
[360190593,1746613841046,-450.0,0.00019516,2]
[360190594,1746613841055,-450.0,0.00019516,2]
[360190595,1746613841065,-450.0,0.00019516,2]
[360190596,1746613841074,-450.0,0.00019516,2]
[360190597,1746613841084,-450.0,0.00019516,2]
[360190598,1746613841093,-796.22,0.00019516,2]
[360190599,1746613841102,-450.0,0.00019516,2]
[360190600,1746613841111,-450.0,0.00019516,2]
[360190601,1746613841120,-450.0,0.00019516,2]
[360190602,1746613841130,-1010.03,0.00019516,2]
[360190603,1746613841139,-450.0,0.00019516,2]
[360190604,1746613841148,-450.0,0.00019516,2]
[360190605,1746613841158,-450.0,0.00019516,2]
[360190606,1746613841167,-450.0,0.00019516,2]
[360190607,1746613841176,-2556.73,0.00019516,2]
[360190608,1746613841186,-450.0,0.00019516,2]
[360190609,1746613841196,-693.25,0.00019516,2]
[360190610,1746613841205,-450.0,0.00019516,2]
[360190611,1746613841215,-450.0,0.00019516,2]
[360190612,1746613841224,-450.0,0.00019516,2]
[360190613,1746613841234,-450.0,0.00019516,2]
[360190614,1746613841244,-9324.02,0.00019516,2]
[360190615,1746613841253,-450.0,0.00019516,2]
[360190616,1746613841263,-450.0,0.00019516,2]
[360190617,1746613841272,-450.0,0.00019516,2]
[360190618,1746613841281,-450.0,0.00019516,2]
[360190619,1746613841291,-450.0,0.00019516,2]
[360190620,1746613841301,-822.73,0.00019516,2]
[360190621,1746613841310,-450.0,0.00019516,2]
[360190622,1746613841320,-482.26,0.00019516,2]
[360190623,1746613841334,-450.0,0.00019516,2]
[360190624,1746613841343,-1954.2,0.00019516,2]
[360190625,1746613841353,-450.0,0.00019516,2]
[360190626,1746613841362,-450.0,0.00019516,2]
[360190627,1746613841373,-450.0,0.00019516,2]
[360190628,1746613841383,-450.0,0.00019516,2]
[360190629,1746613841392,-450.0,0.00019516,2]
[360190630,1746613841403,-450.0,0.00019516,2]
[360190631,1746613841412,-15391.13,0.00019516,2]
[360190632,1746613841421,-450.0,0.00019516,2]
[360190633,1746613841430,-450.0,0.00019516,2]
[360190634,1746613841440,-1073.81533223,0.00019516,2]
[360190635,1746613841449,-939.98,0.00019516,2]
[360190636,1746613841459,-450.0,0.00019516,2]
[360190637,1746613841468,-450.0,0.00019516,2]
[360190638,1746613841477,-506.22082824,0.00019516,2]
[360190639,1746613841486,-6973.27,0.00019516,2]
[360190640,1746613841495,-500.0,0.00019516,2]
[360190641,1746613841504,-450.0,0.00019516,2]
[360190642,1746613841513,-450.0,0.00019516,2]
[360190643,1746613841522,-458.48163725,0.00019516,2]
[360190644,1746613841531,-450.0,0.00019516,2]
[360190645,1746613841540,-470.0,0.00019516,2]
[360190646,1746613841549,-450.0,0.00019516,2]
[360190647,1746613841559,-450.0,0.00019516,2]
[360190648,1746613841568,-450.0,0.00019516,2]
[360190649,1746613841578,-2523.49,0.00019516,2]
[360190650,1746613841587,-460.39,0.00019516,2]
[360190651,1746613841596,-460.39,0.00019516,2]
[360190652,1746613841606,-450.0,0.00019516,2]
[360190653,1746613841615,-450.0,0.00019516,2]
[360190654,1746613841624,-450.0,0.00019516,2]
[360190655,1746613841634,-450.0,0.00019516,2]
[360190656,1746613841643,-883.88,0.00019516,2]
[360190657,1746613841652,-548.68,0.00019516,2]
[360190658,1746613841662,-883.88,0.00019516,2]
[360190659,1746613841671,-482.57,0.00019516,2]
[360190660,1746613841680,-803.64,0.00019516,2]
[360190661,1746613841689,-450.0,0.00019516,2]
[360190662,1746613841698,-450.0,0.00019516,2]
[360190663,1746613841707,-1607.64,0.00019516,2]
[360190664,1746613841716,-570.3,0.00019516,2]
[360190665,1746613841725,-450.0,0.00019516,2]
[360190666,1746613841734,-500.0,0.00019516,2]
[360190667,1746613841743,-450.0,0.00019516,2]
[360190668,1746613841752,-450.0,0.00019516,2]
[360190669,1746613841761,-450.0,0.00019516,2]
[360190670,1746613841771,-450.0,0.00019516,2]
[360190671,1746613841780,-450.0,0.00019516,2]
[360190672,1746613841789,-1740.71,0.00019516,2]
[360190673,1746613841798,-450.0,0.00019516,2]
[360190674,1746613841807,-485.66,0.00019516,2]
[360190675,1746613841816,-1740.71,0.00019516,2]
[360190676,1746613841825,-450.0,0.00019516,2]
[360190677,1746613841834,-502.23486469,0.00019516,2]
[360190678,1746613841843,-450.0,0.00019516,2]
[360190679,1746613841852,-450.0,0.00019516,2]
[360190680,1746613841861,-450.0,0.00019516,2]
[360190681,1746613841870,-503.38,0.00019516,2]
[360190682,1746613841880,-1306.8,0.00019516,2]
[360190683,1746613841890,-450.0,0.00019516,2]
[360190684,1746613841901,-534.55,0.00019516,2]
[360190685,1746613841910,-547.54,0.00019516,2]
[360190686,1746613841919,-547.54,0.00019516,2]
[360190687,1746613841928,-346.57892246,0.00019516,2]
[360190688,1746613841940,-450.0,0.00019516,2]
[360190689,1746613841949,-450.0,0.00019516,2]
[360190690,1746613841959,-450.0,0.00019516,2]
[360190691,1746613841968,-653.99,0.00019516,2]
[360190692,1746613841977,-619.31,0.00019516,2]
[360190693,1746613841986,-1374.83,0.00019516,2]
[360190694,1746613841997,-529.04,0.00019516,2]
[360190695,1746613842007,-1494.48,0.00019516,2]
[360190696,1746613842016,-1494.48,0.00019516,2]
[360190697,1746613842026,-522.38,0.00019516,2]
[360190698,1746613842035,-450.0,0.00019516,2]
[360190699,1746613842045,-450.0,0.00019516,2]
[360190700,1746613842055,-558.67055923,0.00019516,2]
[360190701,1746613842064,-450.0,0.00019516,2]
[360190702,1746613842074,-450.0,0.00019516,2]
[360190703,1746613842083,-450.0,0.00019516,2]
[360190704,1746613842094,-450.0,0.00019516,2]
[360190705,1746613842103,-450.0,0.00019516,2]
[360190706,1746613842113,-548.93,0.00019516,2]
[360190707,1746613842122,-456.26457856,0.00019516,2]
[360190708,1746613842131,-450.0,0.00019516,2]
[360190709,1746613842140,-1746.66,0.00019516,2]
[360190710,1746613842150,-450.0,0.00019516,2]
[360190711,1746613842159,-450.0,0.00019516,2]
[360190712,1746613842169,-450.0,0.00019516,2]
[360190713,1746613842178,-450.0,0.00019516,2]
[360190714,1746613842187,-331.95746135,0.00019516,2]
[360190715,1746613842197,-476.48485893,0.00019516,2]
[360190716,1746613842207,-450.0,0.00019516,2]
[360190717,1746613842216,-450.0,0.00019516,2]
[360190718,1746613842225,-1453.46,0.00019516,2]
[360190719,1746613842235,-1886.83,0.00019516,2]
[360190720,1746613842244,-171.83163872,0.00019516,2]
[360190721,1746613842254,-450.0,0.00019516,2]
[360190722,1746613842263,-450.0,0.00019516,2]
[360190723,1746613842272,-450.0,0.00019516,2]
[360190724,1746613842282,-152.89615112,0.00019517,2]
[360190725,1746613842291,-69903.67407789,0.00019517,2]
[360190726,1746613842301,-1000.0,0.00019517,2]
[360190727,1746613842310,-1000.0,0.00019517,2]
[360190728,1746613842319,-1000.0,0.00019517,2]
[360190729,1746613842329,-632.0,0.00019517,2]
[360190730,1746613842338,-450.0,0.00019517,2]
[360190731,1746613842347,-450.0,0.00019517,2]
[360190732,1746613842357,-469.27908479,0.00019517,2]
[360190733,1746613842366,-482.9106855,0.00019517,2]
[360190734,1746613842376,-469.20720008,0.00019517,2]
[360190735,1746613842385,-540.8516284,0.00019517,2]
[360190736,1746613842394,-450.0,0.00019517,2]
[360190737,1746613842404,-450.0,0.00019517,2]
[360190738,1746613842413,-565.65,0.00019517,2]
[360190739,1746613842423,-565.65,0.00019517,2]
[360190740,1746613842432,-450.0,0.00019517,2]
[360190741,1746613842442,-565.52433138,0.00019517,2]
[360190742,1746613842451,-450.0,0.00019517,2]
[360190743,1746613842461,-450.0,0.00019517,2]
[360190744,1746613842470,-450.0,0.00019517,2]
[360190745,1746613842478,-250.0,0.00019517,2]
[360190746,1746613842487,-450.0,0.00019517,2]
[360190747,1746613842496,-450.0,0.00019517,2]
[360190748,1746613842505,-450.0,0.00019517,2]
[360190749,1746613842515,-450.0,0.00019517,2]
[360190750,1746613842524,-295.35663963,0.00019517,2]
[360190751,1746613842533,-450.0,0.00019517,2]
[360190752,1746613842542,-246.70662978,0.00019517,2]
[360190753,1746613842551,-450.0,0.00019517,2]
[360190754,1746613842560,-450.0,0.00019517,2]
[360190755,1746613842570,-312.33478504,0.00019517,2]
[360190756,1746613842580,-182.09936796,0.00019517,2]
[360190757,1746613842589,-450.0,0.00019517,2]
[360190758,1746613842598,-450.0,0.00019517,2]
[360190759,1746613842607,-427.52805475,0.00019517,2]
[360190760,1746613842617,-450.0,0.00019517,2]
[360190761,1746613842626,-558.48241076,0.00019517,2]
[360190762,1746613842635,-263.08645229,0.00019517,2]
[360190763,1746613842644,-450.0,0.00019517,2]
[360190764,1746613842653,-382.04556753,0.00019517,2]
[360190765,1746613842662,-297.16316741,0.00019517,2]
[360190766,1746613842672,-450.0,0.00019517,2]
[360190767,1746613842681,-450.0,0.00019517,2]
[360190768,1746613842691,-450.0,0.00019517,2]
[360190769,1746613842700,-450.0,0.00019517,2]
[360190770,1746613842709,-470.0,0.00019517,2]
[360190771,1746613842719,-450.0,0.00019517,2]
[360190772,1746613842728,-450.0,0.00019517,2]
[360190773,1746613842737,-310.84589902,0.00019517,2]
[360190774,1746613842746,-450.0,0.00019517,2]
[360190775,1746613842755,-470.0,0.00019517,2]
[360190776,1746613842765,-500.0,0.00019517,2]
[360190777,1746613842774,-500.0,0.00019517,2]
[360190778,1746613842784,-450.0,0.00019517,2]
[360190779,1746613842793,-1025.68416154,0.00019517,2]
[360190781,1746613842802,-450.0,0.00019517,2]
[360190783,1746613842811,-482.21650412,0.00019517,2]
[360190785,1746613842820,-450.0,0.00019517,2]
[360190786,1746613842829,-450.0,0.00019517,2]
[360190787,1746613842838,-543.10560864,0.00019517,2]
[360190789,1746613842848,-165.66428101,0.00019517,2]
[360190790,1746613842856,-450.0,0.00019517,2]
[360190791,1746613842865,-450.0,0.00019517,2]
[360190792,1746613842875,-419.26244551,0.00019517,2]
[360190793,1746613842884,-450.0,0.00019517,2]
[360190794,1746613842893,-494.03317155,0.00019517,2]
[360190795,1746613842902,-450.0,0.00019517,2]
[360190796,1746613842910,-569.36619781,0.00019517,2]
[360190797,1746613842920,-450.0,0.00019517,2]
[360190798,1746613842929,-592.85353431,0.00019517,2]
[360190799,1746613842938,-463.98370083,0.00019517,2]
[360190800,1746613842947,-470.0,0.00019517,2]
[360190801,1746613842956,-450.0,0.00019517,2]
[360190802,1746613842965,-450.0,0.00019517,2]
[360190803,1746613842975,-450.0,0.00019517,2]
[360190805,1746613842983,-450.0,0.00019517,2]
[360190807,1746613842992,-500.23597811,0.00019517,2]
[360190809,1746613843002,-481.99914394,0.00019517,2]
[360190810,1746613843012,-450.0,0.00019517,2]
[360190811,1746613843021,-450.0,0.00019517,2]
[360190812,1746613843031,-450.0,0.00019517,2]
[360190813,1746613843040,-450.0,0.00019517,2]
[360190814,1746613843050,-470.0,0.00019517,2]
[360190815,1746613843060,-450.0,0.00019517,2]
[360190816,1746613843070,-470.0,0.00019517,2]
[360190817,1746613843079,-450.0,0.00019517,2]
[360190818,1746613843089,-470.0,0.00019517,2]
[360190819,1746613843098,-450.0,0.00019517,2]
[360190820,1746613843107,-465.45244462,0.00019517,2]
[360190821,1746613843116,-459.49473708,0.00019517,2]
[360190822,1746613843125,-461.20088184,0.00019517,2]
[360190823,1746613843134,-503.03,0.00019517,2]
[360190824,1746613843143,-450.0,0.00019517,2]
[360190825,1746613843152,-532.0034046,0.00019517,2]
[360190826,1746613843162,-470.0,0.00019517,2]
[360190827,1746613843171,-450.0,0.00019517,2]
[360190828,1746613843180,-450.0,0.00019517,2]
[360190829,1746613843190,-513.18,0.00019517,2]
[360190830,1746613843199,-450.0,0.00019517,2]
[360190831,1746613843208,-450.0,0.00019517,2]
[360190832,1746613843218,-450.0,0.00019517,2]
[360190833,1746613843227,-566.95645585,0.00019517,2]
[360190834,1746613843236,-450.0,0.00019517,2]
[360190835,1746613843246,-466.18678325,0.00019517,2]
[360190836,1746613843255,-450.0,0.00019517,2]
[360190837,1746613843265,-557.76366792,0.00019517,2]
[360190838,1746613843274,-572.88585975,0.00019517,2]
[360190839,1746613843284,-470.0,0.00019517,2]
[360190840,1746613843293,-470.0,0.00019517,2]
[360190841,1746613843303,-450.0,0.00019517,2]
[360190842,1746613843312,-450.0,0.00019517,2]
[360190843,1746613843322,-450.0,0.00019517,2]
[360190844,1746613843335,-450.0,0.00019517,2]
[360190845,1746613843344,-450.0,0.00019517,2]
[360190846,1746613843354,-450.0,0.00019517,2]
[360190847,1746613843365,-450.0,0.00019517,2]
[360190848,1746613843374,-512.76552371,0.00019517,2]
[360190849,1746613843384,-450.0,0.00019517,2]
[360190850,1746613843393,-450.0,0.00019517,2]
[360190851,1746613843403,-366.31219986,0.00019517,2]
[360190852,1746613843412,-450.0,0.00019517,2]
[360190853,1746613843422,-582.97780012,0.00019517,2]
[360190855,1746613843431,-450.0,0.00019517,2]
[360190857,1746613843441,-450.0,0.00019517,2]
[360190859,1746613843451,-450.0,0.00019517,2]
[360190861,1746613843460,-450.0,0.00019517,2]
[360190863,1746613843470,-450.0,0.00019517,2]
[360190865,1746613843479,-450.0,0.00019517,2]
[360190867,1746613843488,-450.0,0.00019517,2]
[360190869,1746613843498,-450.0,0.00019517,2]
[360190871,1746613843507,-450.0,0.00019517,2]
[360190873,1746613843517,-450.0,0.00019517,2]
[360190875,1746613843526,-450.0,0.00019517,2]
[360190877,1746613843535,-450.0,0.00019517,2]
[360190879,1746613843544,-450.0,0.00019517,2]
[360190881,1746613843554,-450.0,0.00019517,2]
[360190883,1746613843563,-170.23787722,0.00019517,2]
[360190885,1746613843572,-450.0,0.00019517,2]
[360190887,1746613843581,-450.0,0.00019517,2]
[360190889,1746613843591,-290.92602047,0.00019517,2]
[360190891,1746613843600,-450.0,0.00019517,2]
[360190893,1746613843609,-450.0,0.00019517,2]
[360190895,1746613843618,-450.0,0.00019517,2]
[360190897,1746613843628,-450.0,0.00019517,2]
[360190899,1746613843638,-450.0,0.00019517,2]
[360190901,1746613843647,-470.0,0.00019517,2]
[360190903,1746613843656,-450.0,0.00019517,2]
[360190905,1746613843666,-440.5696238,0.00019517,2]
[360190907,1746613843674,-450.0,0.00019517,2]
[360190909,1746613843684,-470.0,0.00019517,2]
[360190911,1746613843693,-450.0,0.00019517,2]
[360190913,1746613843703,-450.0,0.00019517,2]
[360190915,1746613843713,-450.0,0.00019517,2]
[360190917,1746613843722,-450.0,0.00019517,2]
[360190919,1746613843732,-551.00814899,0.00019517,2]
[360190921,1746613843742,-171.31348171,0.00019517,2]
[360190923,1746613843751,-450.0,0.00019517,2]
[360190925,1746613843760,-450.0,0.00019517,2]
[360190927,1746613843770,-450.0,0.00019517,2]
[360190929,1746613843779,-450.0,0.00019517,2]
[360190931,1746613843789,-450.0,0.00019517,2]
[360190933,1746613843800,-450.0,0.00019517,2]
[360190935,1746613843809,-450.0,0.00019517,2]
[360190937,1746613843819,-450.0,0.00019517,2]
[360190939,1746613843828,-450.0,0.00019517,2]
[360190941,1746613843837,-450.0,0.00019517,2]
[360190943,1746613843846,-450.0,0.00019517,2]
[360190945,1746613843856,-450.0,0.00019517,2]
[360190947,1746613843865,-450.0,0.00019517,2]
[360190949,1746613843875,-151.0,0.00019517,2]
[360190951,1746613843884,-450.0,0.00019517,2]
[360190953,1746613843894,-490.0,0.00019517,2]
[360190956,1746613843904,-450.0,0.00019517,2]
[360190958,1746613843913,-450.0,0.00019517,2]
[360190960,1746613843923,-361.30841792,0.00019517,2]
[360190962,1746613843933,-450.0,0.00019517,2]
[360190964,1746613843943,-450.0,0.00019517,2]
[360190966,1746613843953,-450.0,0.00019517,2]
[360190968,1746613843962,-450.0,0.00019517,2]
[360190970,1746613843971,-450.0,0.00019517,2]
[360190971,1746613843981,-450.0,0.00019517,2]
[360190974,1746613843991,-450.0,0.00019517,2]
[360190975,1746613844000,-450.0,0.00019517,2]
[360190977,1746613844009,-450.0,0.00019517,2]
[360190979,1746613844019,-450.0,0.00019517,2]
[360190981,1746613844028,-450.0,0.00019517,2]
[360190983,1746613844037,-560.17653214,0.00019517,2]
[360190985,1746613844047,-450.0,0.00019517,2]
[360190987,1746613844055,-450.0,0.00019517,2]
[360190989,1746613844065,-450.0,0.00019517,2]
[360190991,1746613844075,-450.0,0.00019517,2]
[360190993,1746613844084,-450.0,0.00019517,2]
[360190995,1746613844094,-450.0,0.00019517,2]
[360190997,1746613844103,-450.0,0.00019517,2]
[360190999,1746613844112,-484.51864286,0.00019517,2]
[360191001,1746613844122,-450.0,0.00019517,2]
[360191003,1746613844132,-335.38889523,0.00019517,2]
[360191005,1746613844142,-450.0,0.00019517,2]
[360191007,1746613844151,-450.0,0.00019517,2]
[360191008,1746613844160,-450.0,0.00019517,2]
[360191009,1746613844169,-800.33,0.00019517,2]
[360191010,1746613844178,-450.0,0.00019517,2]
[360191011,1746613844187,-450.0,0.00019517,2]
[360191012,1746613844196,-450.0,0.00019517,2]
[360191013,1746613844205,-462.38169065,0.00019517,2]
[360191014,1746613844214,-450.0,0.00019517,2]
[360191015,1746613844223,-450.0,0.00019517,2]
[360191016,1746613844232,-450.0,0.00019517,2]
[360191017,1746613844241,-203.56719084,0.00019517,2]
[360191018,1746613844250,-450.0,0.00019517,2]
[360191019,1746613844259,-452.30386389,0.00019517,2]
[360191020,1746613844268,-450.0,0.00019517,2]
[360191021,1746613844277,-450.0,0.00019517,2]
[360191022,1746613844286,-450.0,0.00019517,2]
[360191023,1746613844295,-450.0,0.00019517,2]
[360191024,1746613844304,-184.31145505,0.00019517,2]
[360191026,1746613844314,-489.1,0.00019517,2]
[360191028,1746613844325,-450.0,0.00019517,2]
[360191030,1746613844334,-450.0,0.00019517,2]
[360191031,1746613844343,-674.42,0.00019517,2]
[360191033,1746613844353,-674.42,0.00019517,2]
[360191035,1746613844362,-430.46275805,0.00019517,2]
[360191037,1746613844371,-450.0,0.00019517,2]
[360191039,1746613844380,-623.19,0.00019517,2]
[360191041,1746613844389,-623.19,0.00019517,2]
[360191043,1746613844398,-517.74030655,0.00019517,2]
[360191045,1746613844408,-450.0,0.00019517,2]
[360191047,1746613844417,-450.0,0.00019517,2]
[360191049,1746613844427,-450.0,0.00019517,2]
[360191051,1746613844436,-568.89454177,0.00019517,2]
[360191054,1746613844446,-450.0,0.00019517,2]
[360191056,1746613844455,-450.0,0.00019517,2]
[360191058,1746613844465,-450.0,0.00019517,2]
[360191060,1746613844474,-301.55924443,0.00019517,2]
[360191061,1746613844483,-616.53,0.00019517,2]
[360191062,1746613844492,-450.0,0.00019517,2]
[360191063,1746613844502,-450.0,0.00019517,2]
[360191064,1746613844683,-651.84,0.00019517,2]
[360191065,1746613844693,-151.0,0.00019517,2]
[360191066,1746613844703,-1154.87,0.00019517,2]
[360191067,1746613844712,-450.0,0.00019517,2]
[360191068,1746613844722,-450.0,0.00019517,2]
[360191069,1746613844731,-450.0,0.00019517,2]
[360191070,1746613844741,-1197.28,0.00019517,2]
[360191071,1746613844750,-575.58,0.00019517,2]
[360191072,1746613844760,-672.31,0.00019517,2]
[360191073,1746613844769,-575.58,0.00019517,2]
[360191074,1746613844778,-750.72,0.00019517,2]
[360191075,1746613844787,-763.97,0.00019517,2]
[360191076,1746613844797,-571.76,0.00019517,2]
[360191077,1746613844808,-243.641554,0.00019517,2]
[360191078,1746613844817,-571.76,0.00019517,2]